bitfinex/quotes_SOLUSD_20250206
["timestamp","ask_amount","ask_price","bid_price","bid_amount"]
[1738872495007,0.10436303,190.46,190.44,38.44965323]
[1738872495008,6.406e-05,190.47,190.46,0.12549]
[1738872495310,1.919e-05,190.48,190.47,13.91380853]
[1738872495474,8.392e-05,190.49,190.48,21.67960853]
[1738872495673,8.392e-05,190.49,190.48,47.49346449]
[1738872495879,7.144e-05,190.5,190.49,13.91380853]
[1738872496074,2.309e-05,190.53,190.52,0.50196]
[1738872496284,7.742e-05,190.54,190.53,13.91380853]
[1738872496481,7.742e-05,190.54,190.53,37.63224142]
[1738872496688,7.742e-05,190.54,190.53,38.59197029]
[1738872497201,23.71843289,190.69,190.57,6.50936]
[1738872497406,25.33993289,190.7,190.63,23.71843289]
[1738872497579,23.78143289,190.71,190.65,0.50196]
[1738872497784,0.063,190.71,190.66,23.71843289]
[1738872498398,23.71843289,190.69,190.62,23.71843289]
[1738872498899,23.71843289,190.7,190.64,0.12549]
[1738872499385,0.063,190.71,190.65,23.71843289]
[1738872499583,0.063,190.71,190.67,13.91380853]
[1738872499799,0.063,190.71,190.69,23.71843289]
[1738872500099,0.063,190.71,190.68,24.09490289]
[1738872500279,0.063,190.71,190.69,23.71843289]
[1738872500681,0.063,190.71,190.7,23.84392289]
[1738872500892,0.063,190.71,190.7,37.63224142]
[1738872501095,23.71843289,190.78,190.7,42.87604142]
[1738872501297,20.0,190.77,190.71,23.71843289]
[1738872501708,1.5093,190.82,190.74,23.71843289]
[1738872501709,23.71843289,190.8,190.74,23.71843289]
[1738872501910,26.79983289,190.82,190.75,23.71843289]
[1738872502086,23.71843289,190.81,190.74,23.71843289]
[1738872502416,26.79983289,190.82,190.75,23.71843289]
[1738872502713,23.71843289,190.81,190.74,23.71843289]
[1738872503020,23.71843289,190.81,190.74,28.96103289]
[1738872503209,23.71843289,190.81,190.74,23.71843289]
[1738872503414,23.71843289,190.8,190.74,0.12549]
[1738872503907,23.71843289,190.78,190.72,23.71843289]
[1738872504104,23.71843289,190.78,190.71,42.75005142]
[1738872504289,23.71843289,190.79,190.72,23.71843289]
[1738872504697,25.29063289,190.81,190.74,23.71843289]
[1738872505007,23.71843289,190.8,190.73,23.84392289]
[1738872505308,23.71843289,190.79,190.73,5.36849]
[1738872505506,23.71843289,190.76,190.69,28.96253289]
[1738872505712,23.71843289,190.77,190.7,23.71843289]
[1738872505920,23.71843289,190.78,190.71,23.84392289]
[1738872506099,23.71843289,190.8,190.73,23.84392289]
[1738872506690,23.71843289,190.83,190.77,0.12549]
[1738872506987,6.3304,190.86,190.78,5.2416]
[1738872506988,25.29043289,190.84,190.78,5.2416]
[1738872507188,23.71843289,190.84,190.77,29.08552289]
[1738872507391,23.71843289,190.85,190.78,23.71843289]
[1738872508097,23.71843289,190.81,190.75,42.74915142]
[1738872508610,23.71843289,190.82,190.76,0.12549]
[1738872509311,23.71843289,190.81,190.74,5.2427]
[1738872509624,23.71843289,190.76,190.71,9.6034]
[1738872509789,23.71843289,190.8,190.74,13.78831853]
[1738872510112,2.6495,190.87,190.75,0.12549]
[1738872510113,1.572,190.84,190.75,0.12549]
[1738872510692,23.572,190.84,190.71,9.6034]
[1738872511026,23.71843289,190.78,190.72,0.12549]
[1738872511193,23.71843289,190.78,190.72,5.36849]
[1738872511817,23.71843289,190.82,190.76,23.71843289]
[1738872512305,23.71843289,190.81,190.76,0.12549]
[1738872512914,23.71843289,190.81,190.76,5.36759]
[1738872513223,23.71843289,190.8,190.75,5.2424]
[1738872513591,23.71843289,190.81,190.75,5.2424]
[1738872513907,23.71843289,190.8,190.75,5.2424]
[1738872514113,23.71843289,190.76,190.7,23.71843289]
[1738872514325,23.71843289,190.73,190.7,4.36]
[1738872514896,23.71843289,190.74,190.7,4.36]
[1738872515096,0.10313916,190.71,190.7,9.72929]
[1738872516505,0.10313916,190.71,190.68,5.2443]
[1738872516710,23.82157205,190.71,190.65,4.36]
[1738872516918,23.82157205,190.71,190.66,5.2449]
[1738872517108,0.10313916,190.71,190.67,0.12549]
[1738872518213,0.10313916,190.71,190.67,5.36989]
[1738872518423,0.10313916,190.71,190.69,0.12549]
[1738872518898,0.10132324,190.73,190.69,0.12549]
[1738872519101,0.10132324,190.73,190.71,0.12549]
[1738872519617,0.10132324,190.73,190.72,37.63224142]
[1738872519807,0.10132324,190.73,190.72,38.41850143]
[1738872520115,0.10132324,190.73,190.72,43.66170143]
[1738872520116,2.324e-05,190.73,190.72,43.66170143]
[1738872520315,8.715e-05,190.74,190.73,0.12549]
[1738872520533,5.27e-05,190.75,190.74,13.91380853]
[1738872520823,6.499e-05,190.76,190.75,13.91380853]
[1738872521128,6.499e-05,190.76,190.75,37.63224142]
[1738872522499,23.71843289,190.85,190.77,13.53733853]
[1738872522698,23.71843289,190.85,190.79,0.12549]
[1738872524221,23.71843289,190.86,190.79,23.84392289]
[1738872524598,23.71843289,190.85,190.79,5.36659]
[1738872524901,23.71843289,190.84,190.79,5.36659]
[1738872525215,0.063,190.94,190.89,1.0]
[1738872525428,0.063,190.98,190.94,13.91380853]
[1738872525726,0.063,190.98,190.95,23.71843289]
[1738872525929,0.063,190.98,190.94,0.50196]
[1738872526407,0.063,190.98,190.93,43.71843289]
[1738872526606,0.063,190.98,190.94,23.71843289]
[1738872526811,0.063,190.98,190.94,28.95563289]
[1738872527207,0.063,190.98,190.94,23.71843289]
[1738872528432,0.063,190.98,190.93,43.71843289]
[1738872528639,0.063,190.98,190.94,0.50196]
[1738872529428,0.063,190.98,190.9,5.31786874]
[1738872529429,23.71843289,190.97,190.9,24.67630163]
[1738872529641,23.78143289,190.98,190.91,23.71843289]
[1738872529928,0.063,190.98,190.92,23.71843289]
[1738872530330,0.063,190.98,190.94,23.71843289]
[1738872530534,0.063,190.98,190.97,23.71843289]
[1738872530944,0.063,190.98,190.97,29.45679289]
[1738872531123,0.063,190.98,190.97,42.86864142]
[1738872531638,0.063,190.98,190.97,29.45679289]
[1738872531839,25.35173289,191.04,190.97,29.45679289]
[1738872532162,0.063,191.04,190.98,24.22039289]
[1738872532826,0.063,191.04,190.98,29.45649289]
[1738872533229,0.063,191.04,191.0,0.50196]
[1738872535174,0.11182607,191.01,191.0,0.50196]
[1738872535368,0.11182607,191.01,190.97,28.95483289]
[1738872535540,0.11182607,191.01,190.97,5.2364]
[1738872535741,0.11182607,191.01,190.98,0.50196]
[1738872536238,0.11182607,191.01,190.98,24.22039289]
[1738872536444,0.11182607,191.01,190.98,0.50196]
[1738872537144,0.11182607,191.01,190.96,28.95503289]
[1738872537643,0.11182607,191.01,190.97,0.50196]
[1738872539464,0.11182607,191.01,190.97,5.73826]
[1738872539762,0.11182607,191.01,190.99,0.50196]
[1738872539960,0.11182607,191.01,191.0,23.71843289]
[1738872540157,0.11182607,191.01,190.98,0.50196]
[1738872540353,23.83025896,191.01,190.95,9.5967]
[1738872540556,23.83025896,191.01,190.96,0.37647]
[1738872540760,23.71843289,190.98,190.94,18.64894853]
[1738872540960,23.71843289,190.99,190.94,18.64894853]
[1738872541142,23.71843289,190.99,190.94,5.2371]
[1738872542946,0.11182607,191.01,190.95,29.45729289]
[1738872543145,0.11182607,191.01,190.97,24.22039289]
[1738872543344,0.11182607,191.01,191.0,0.50196]
[1738872543546,0.11182607,191.01,191.0,37.63224142]
[1738872544467,0.11155915,191.03,191.0,13.91380853]
[1738872544656,0.11155915,191.03,191.0,0.50196]
[1738872545469,0.11155915,191.03,191.0,5.73746]
[1738872546060,23.71843289,191.06,191.0,5.73746]
[1738872546776,23.71843289,191.05,191.0,5.73746]
[1738872547558,23.71843289,191.03,190.97,5.2362]
[1738872547749,23.71843289,191.02,190.97,5.2362]
[1738872547950,23.71843289,191.02,190.98,0.50196]
[1738872548273,23.71843289,191.02,190.96,5.2366]
[1738872548465,23.71843289,191.03,190.97,0.50196]
[1738872548661,23.71843289,191.05,190.98,23.71843289]
[1738872548867,23.71843289,191.05,191.0,0.50196]
[1738872549259,23.71843289,191.05,190.98,37.13028142]
[1738872549467,23.71843289,191.05,190.99,0.50196]
[1738872549645,23.71843289,191.03,190.99,0.50196]
[1738872549975,23.71843289,191.04,190.99,0.50196]
[1738872550761,25.28863289,191.05,190.99,5.73756]
[1738872551077,23.71843289,191.04,190.99,5.73756]
[1738872551251,25.28863289,191.05,190.99,5.73756]
[1738872551870,23.71843289,191.04,190.97,23.71843289]
[1738872552062,23.71843289,191.04,190.97,5.2364]
[1738872552257,23.71843289,191.02,190.97,5.2364]
[1738872552573,23.71843289,191.01,190.97,5.2364]
[1738872552768,23.71843289,191.02,190.97,5.2364]
[1738872553076,23.71843289,191.04,190.98,0.50196]
[1738872553274,23.71843289,191.05,190.98,37.63224142]
[1738872553468,1.72838158,191.07,191.02,0.50196]
[1738872553870,1.72838158,191.07,191.03,5.2347]
[1738872554077,25.44681447,191.07,191.0,43.71843289]
[1738872554583,23.71843289,191.06,191.0,43.71843289]
[1738872554776,14.81145128,191.05,191.0,20.0]
[1738872554970,14.81145128,191.04,190.99,18.64764853]
[1738872555169,0.10100909,191.01,191.0,0.50196]
[1738872555477,0.10100909,191.01,190.99,5.2358]
[1738872555676,0.10100909,191.01,190.97,5.2361]
[1738872556176,0.10100909,191.01,190.98,0.50196]
[1738872556376,0.10100909,191.01,190.96,18.64844853]
[1738872556885,0.10100909,191.01,190.97,0.50196]
[1738872557575,0.10100909,191.01,190.98,5.2361]
[1738872558178,0.10100909,191.01,190.99,13.91380853]
[1738872558369,0.16400909,191.01,191.0,15.31341128]
[1738872559467,0.16400909,191.01,191.0,20.54901128]
[1738872560065,0.16400909,191.01,191.0,5.73756]
[1738872561174,0.16400909,191.01,190.98,14.81145128]
[1738872561377,0.16400909,191.01,190.95,15.59667805]
[1738872561684,0.16400909,191.01,190.96,5.2366]
[1738872561982,0.16400909,191.01,190.97,0.50196]
[1738872562557,0.16400909,191.01,190.98,5.2361]
[1738872563790,23.67308539,191.02,190.98,5.2361]
[1738872564394,0.09504264,191.03,190.97,0.50196]
[1738872564585,23.70851425,191.0,190.97,5.73836]
[1738872564760,23.70851425,191.01,190.97,5.73836]
[1738872565108,0.09504264,191.03,190.99,0.50196]
[1738872565312,0.09504264,191.03,191.0,13.41184853]
[1738872566591,0.09504264,191.03,191.0,18.64724853]
[1738872566793,23.80355689,191.03,191.0,18.64724853]
[1738872567300,23.70851425,191.02,191.01,3.86550825]
[1738872568678,23.70851425,191.02,190.99,3.86550825]
[1738872569901,23.70851425,191.02,191.0,3.86550825]
[1738872571089,25.37395689,191.03,191.0,3.86550825]
[1738872571398,23.70851425,191.01,191.0,3.86550825]
[1738872571594,23.70851425,191.01,190.97,5.2363]
[1738872573014,23.70851425,191.02,190.97,5.2363]
[1738872573317,23.70851425,191.02,190.98,3.91878654]
[1738872575087,0.09536809,190.99,190.98,3.91878654]
[1738872575388,0.09536809,190.99,190.97,5.2363]
[1738872575788,0.09536809,190.99,190.96,13.91380853]
[1738872575988,0.09536809,190.99,190.96,19.15020853]
[1738872576511,0.09536809,190.99,190.97,3.92103002]
[1738872577705,23.80388234,190.99,190.97,3.92103002]
[1738872577891,0.09536809,190.99,190.97,3.92103002]
[1738872578098,0.09536809,190.99,190.98,3.92103002]
[1738872578488,25.37458234,190.99,190.98,3.92103002]
[1738872580011,0.09536809,190.99,190.98,3.92103002]
[1738872583192,16.48828944,190.99,190.98,3.92103002]
[1738872588428,0.09536809,190.99,190.98,3.92103002]
[1738872595104,0.19762134,190.99,190.98,3.92103002]
[1738872596520,0.10225325,190.99,190.98,3.92103002]
[1738872600330,0.10225325,190.99,190.98,24.48131137]
[1738872600529,0.10225325,190.99,190.98,37.8931599]
[1738872600829,0.10225325,190.99,190.98,23.07093855]
[1738872601126,0.10225325,190.99,190.98,3.92103002]
[1738872602001,0.10225325,190.99,190.98,23.07093855]
[1738872602226,0.10225325,190.99,190.98,38.67843351]
[1738872603505,0.10715654,191.0,190.99,13.91380853]
[1738872603701,0.10715654,191.0,190.99,33.07602988]
[1738872604132,0.10715654,191.0,190.99,39.26924724]
[1738872605231,0.05135627,191.01,190.99,43.19027726]
[1738872605429,0.17016079,191.07,191.02,33.91380853]
[1738872605730,0.17016079,191.07,191.03,29.52096338]
[1738872606344,0.17016079,191.07,191.03,33.4419934]
[1738872606627,0.17016079,191.07,191.03,38.6766934]
[1738872607409,0.17016079,191.07,191.04,13.91380853]
[1738872607608,0.17016079,191.07,191.04,29.69319666]
[1738872609240,0.17016079,191.07,191.04,33.61422668]
[1738872610145,0.17016079,191.07,191.04,34.61422668]
[1738872610719,0.17016079,191.07,191.04,38.84872668]
[1738872611239,0.17016079,191.07,191.04,18.79200533]
[1738872611426,14.99238214,191.07,191.04,18.79200533]
[1738872611756,14.92858644,191.05,191.04,3.92103002]
[1738872612720,9.58959724,191.05,191.04,3.92103002]
[1738872612920,11.15979724,191.05,191.04,3.92103002]
[1738872613853,11.15979724,191.05,191.02,3.92103002]
[1738872614534,9.48323215,191.03,191.02,3.92103002]
[1738872614719,14.81649226,191.03,191.02,3.92103002]
[1738872615040,14.81649226,191.04,191.0,3.92103002]
[1738872615220,0.09588538,191.03,191.0,3.92103002]
[1738872616635,0.09588538,191.03,191.01,0.25098]
[1738872617146,0.09588538,191.03,191.01,4.17201002]
[1738872617440,0.09588538,191.03,191.02,0.50196]
[1738872617643,0.09588538,191.03,191.02,28.73030079]
[1738872618136,0.09588538,191.03,191.02,13.91380853]
[1738872618342,0.09588538,191.03,191.02,0.37647]
[1738872618637,0.09588538,191.03,191.02,4.29750002]
[1738872619829,0.09588538,191.03,191.02,17.83483855]
[1738872620019,0.09588538,191.03,191.02,23.06983855]
[1738872621029,0.09588538,191.03,191.02,37.88633081]
[1738872621236,0.09588538,191.03,191.02,38.67134111]
[1738872622252,0.09588538,191.03,191.02,39.62860811]
[1738872622640,8.538e-05,191.03,191.02,41.62860811]
[1738872623358,7.03e-06,191.04,191.03,14.91380853]
[1738872623530,7.03e-06,191.04,191.03,30.68751768]
[1738872623725,7.03e-06,191.04,191.03,29.68751768]
[1738872624137,7.03e-06,191.04,191.03,34.92221768]
[1738872624347,7.03e-06,191.04,191.03,35.92221768]
[1738872624531,7.03e-06,191.04,191.03,39.8432477]
[1738872624732,7.03e-06,191.04,191.03,38.8432477]
[1738872625069,7.03e-06,191.04,191.03,39.8432477]
[1738872625846,7.03e-06,191.04,191.03,40.8432477]
[1738872626930,7.03e-06,191.04,191.03,41.62809174]
[1738872628134,0.06300703,191.04,191.03,40.62809174]
[1738872628654,0.06300703,191.04,191.03,41.62809174]
[1738872629260,0.06300703,191.04,191.03,40.62809174]
[1738872629434,0.06300703,191.04,191.03,41.62809174]
[1738872629959,0.06300703,191.04,191.03,40.62809174]
[1738872630154,0.06300703,191.04,191.03,39.62809174]
[1738872630852,0.06300703,191.04,191.03,24.81159948]
[1738872631055,0.06300703,191.04,191.03,29.15159948]
[1738872631538,0.06300703,191.04,191.03,43.96809174]
[1738872635253,0.15867983,191.04,191.03,43.96809174]
[1738872636371,0.21300957,191.06,191.05,33.91380853]
[1738872636567,0.09902186,191.06,191.05,49.51519759]
[1738872636736,0.09902186,191.06,191.05,44.17249079]
[1738872638163,0.09902186,191.06,191.05,48.09352081]
[1738872638566,0.09902186,191.06,191.05,53.32772081]
[1738872638881,0.07079488,191.07,191.05,53.32772081]
[1738872639161,0.10091994,191.09,191.08,33.91380853]
[1738872640785,0.10091994,191.09,191.08,25.73536]
[1738872641280,0.10091994,191.09,191.08,0.37647]
[1738872641460,17.2134054,191.09,191.08,3.92103002]
[1738872641861,18.7833054,191.09,191.08,3.92103002]
[1738872642860,17.2134054,191.09,191.08,3.92103002]
[1738872643071,17.2134054,191.09,191.04,9.28072002]
[1738872643285,9.47378546,191.07,191.06,0.12549]
[1738872644178,9.47378546,191.07,191.04,3.92103002]
[1738872644381,9.47378546,191.05,191.04,3.92103002]
[1738872644571,9.47378546,191.05,191.04,4.04652002]
[1738872644774,9.47378546,191.05,191.04,0.12549]
[1738872645283,7.73961994,191.09,191.05,0.50196]
[1738872645498,17.2134054,191.09,191.05,0.50196]
[1738872646195,17.2134054,191.09,191.07,0.12549]
[1738872646892,1.72631994,191.09,191.07,5.61007]
[1738872647386,0.10091994,191.09,191.07,5.61007]
[1738872647589,0.10091994,191.09,191.08,17.82168705]
[1738872647805,0.10091994,191.09,191.08,27.29547251]
[1738872648384,0.10091994,191.09,191.08,17.82168705]
[1738872648712,0.10091994,191.09,191.08,23.05508705]
[1738872648902,0.10091994,191.09,191.08,43.05508705]
[1738872651906,0.10091994,191.09,191.08,52.52887251]
[1738872652114,0.10091994,191.09,191.08,52.55887251]
[1738872652291,0.16391994,191.09,191.08,43.08508705]
[1738872653003,0.16391994,191.09,191.08,53.34371766]
[1738872654220,0.16391994,191.09,191.08,43.8699322]
[1738872654820,0.16391994,191.09,191.08,43.08508705]
[1738872655315,0.27413575,191.09,191.08,43.08508705]
[1738872656514,0.17321581,191.09,191.08,43.08508705]
[1738872657619,0.17321581,191.09,191.08,37.68370487]
[1738872657816,0.17321581,191.09,191.08,39.68370487]
[1738872658027,1.581e-05,191.09,191.08,55.41370487]
[1738872658199,1.581e-05,191.09,191.08,39.68370487]
[1738872658398,1.581e-05,191.09,191.08,40.64067128]
[1738872660113,0.11261272,191.11,191.1,34.91380853]
[1738872660425,9.255e-05,191.15,191.14,35.91380853]
[1738872660593,8.032e-05,191.16,191.15,15.91380853]
[1738872660793,8.032e-05,191.16,191.15,30.6952095]
[1738872661125,8.032e-05,191.16,191.15,167.8952095]
[1738872661315,0.08436563,191.17,191.16,14.91380853]
[1738872661512,0.1759387,191.18,191.17,15.91380853]
[1738872661824,0.1759387,191.18,191.17,31.65172539]
[1738872662117,0.01991968,191.18,191.17,36.88262539]
[1738872662898,0.0001,191.2,191.19,2.0]
[1738872663107,0.0001,191.2,191.19,22.86198361]
[1738872663304,0.0431,191.21,191.2,14.91380853]
[1738872663506,0.0431,191.21,191.2,30.6515753]
[1738872663907,0.0431,191.21,191.2,29.6515753]
[1738872664304,8.04535092,191.38,191.31,0.50196]
[1738872664609,8.04535092,191.38,191.37,0.12549]
[1738872665121,8.04535092,191.38,191.36,0.12549]
[1738872665419,14.78140097,191.37,191.33,0.12549]
[1738872665618,14.78140097,191.37,191.33,13.91380853]
[1738872665812,14.78140097,191.39,191.33,13.91380853]
[1738872666516,14.78140097,191.38,191.33,13.91380853]
[1738872667103,14.78140097,191.38,191.35,0.12549]
[1738872667315,14.78140097,191.38,191.37,8.10954634]
[1738872667521,14.78140097,191.39,191.37,8.10954634]
[1738872667827,14.78140097,191.39,191.35,0.12549]
[1738872668334,6.10798925,191.41,191.35,0.12549]
[1738872668335,6.10798925,191.41,191.38,20.50196]
[1738872668707,6.10798925,191.41,191.38,35.28336097]
[1738872668907,6.10798925,191.41,191.38,20.50196]
[1738872669519,14.78140097,191.44,191.38,20.50196]
[1738872669908,14.78140097,191.43,191.38,20.50196]
[1738872670231,14.78140097,191.43,191.38,0.50196]
[1738872670428,16.34850097,191.44,191.38,0.37647]
[1738872670617,16.34850097,191.44,191.39,0.12549]
[1738872671422,14.78140097,191.44,191.39,0.12549]
[1738872671830,22.80670097,191.45,191.38,15.15787097]
[1738872672237,22.80670097,191.45,191.38,15.03238097]
[1738872672729,14.78140097,191.44,191.38,0.25098]
[1738872673028,14.78140097,191.43,191.38,0.25098]
[1738872673206,16.34850097,191.44,191.38,15.03238097]
[1738872673629,14.84850097,191.44,191.38,15.03238097]
[1738872674506,1.5671,191.44,191.38,15.03238097]
[1738872674709,14.78140097,191.46,191.42,20.0]
[1738872675049,14.78140097,191.45,191.39,0.25098]
[1738872675219,0.10324777,191.43,191.39,0.25098]
[1738872675941,0.10324777,191.43,191.38,0.12549]
[1738872676110,14.78140097,191.41,191.35,22.89094731]
[1738872676310,14.78140097,191.41,191.35,32.43684731]
[1738872676632,14.78140097,191.41,191.36,0.37647]
[1738872677234,1.5672,191.42,191.36,0.12549]
[1738872677235,14.78140097,191.4,191.36,0.12549]
[1738872677420,14.78140097,191.37,191.32,8.10954634]
[1738872677633,14.78140097,191.36,191.32,8.10954634]
[1738872677827,14.78140097,191.37,191.32,13.33634634]
[1738872678026,14.78140097,191.38,191.32,14.90689097]
[1738872678232,16.40600097,191.4,191.34,14.90689097]
[1738872678413,20.94050097,191.41,191.35,14.78140097]
[1738872678612,14.78140097,191.4,191.34,14.90689097]
[1738872678832,14.78140097,191.39,191.34,0.12549]
[1738872679018,7.7264,191.41,191.31,25.40980688]
[1738872679019,14.78140097,191.38,191.31,25.40980688]
[1738872679227,14.78140097,191.38,191.32,14.78140097]
[1738872679540,14.78140097,191.34,191.31,0.95581591]
[1738872679743,14.78140097,191.32,191.3,8.10954634]
[1738872680639,14.78140097,191.33,191.3,8.10954634]
[1738872680944,14.78140097,191.33,191.27,5.35359]
[1738872681618,14.78140097,191.33,191.27,0.12549]
[1738872681819,14.78140097,191.3,191.26,4.32]
[1738872682129,1.5679,191.33,191.25,8.10954634]
[1738872682130,14.78140097,191.28,191.25,8.10954634]
[1738872682537,14.78140097,191.27,191.25,8.10954634]
[1738872682737,14.78140097,191.26,191.25,8.10954634]
[1738872682946,16.34990097,191.26,191.25,8.10954634]
[1738872683441,16.34990097,191.26,191.23,8.10954634]
[1738872683641,14.78140097,191.24,191.23,8.10954634]
[1738872684530,14.78140097,191.24,191.23,0.52698377]
[1738872684724,34.78140097,191.24,191.23,0.52698377]
[1738872685217,40.79970097,191.24,191.23,8.377e-05]
[1738872685719,40.79970097,191.24,191.18,1.0]
[1738872685945,14.78140097,191.19,191.17,0.063]
[1738872686136,14.78140097,191.18,191.17,0.063]
[1738872687244,16.35060097,191.18,191.17,0.063]
[1738872691235,14.78140097,191.18,191.17,0.063]
[1738872691562,14.78140097,191.2,191.17,0.063]
[1738872691922,1.5689,191.21,191.18,2.0]
[1738872691923,14.78140097,191.21,191.18,2.0]
[1738872692149,16.35030097,191.21,191.18,2.0]
[1738872692450,14.78140097,191.19,191.17,0.063]
[1738872692647,14.78140097,191.18,191.17,0.063]
[1738872693734,16.35060097,191.18,191.17,0.063]
[1738872694450,1.28718882,191.25,191.17,0.063]
[1738872694451,14.78140097,191.28,191.23,2.0]
[1738872694636,16.34960097,191.29,191.23,2.0]
[1738872694832,14.78140097,191.26,191.22,1.0]
[1738872695149,14.78140097,191.26,191.19,15.28336097]
[1738872695150,0.11125979,191.24,191.23,1.0]
[1738872696447,0.11125979,191.24,191.21,2.0]
[1738872696750,14.78140097,191.22,191.17,2.063]
[1738872696947,14.78140097,191.18,191.17,0.063]
[1738872697841,14.78140097,191.19,191.17,0.063]
[1738872698532,14.78140097,191.18,191.17,0.063]
[1738872701043,16.35060097,191.18,191.17,0.063]
[1738872701952,14.78140097,191.19,191.17,0.063]
[1738872702936,14.78140097,191.18,191.17,0.063]
[1738872703141,16.35060097,191.18,191.17,0.063]
[1738872709246,14.78140097,191.18,191.17,0.063]
[1738872710847,16.35060097,191.18,191.17,0.063]
[1738872715238,16.45988783,191.18,191.17,0.063]
[1738872715441,16.48988783,191.18,191.17,0.063]
[1738872722463,0.13928686,191.18,191.17,0.063]
[1738872723459,0.13928686,191.18,191.17,1.063]
[1738872723864,0.13928686,191.18,191.17,2.18849]
[1738872724059,0.13928686,191.18,191.17,22.32628097]
[1738872724252,0.13928686,191.18,191.17,35.9891095]
[1738872724671,8.686e-05,191.18,191.17,46.8491258]
[1738872724974,6.598e-05,191.21,191.19,15.91380853]
[1738872725293,5.55e-06,191.22,191.2,74.12545178]
[1738872725452,5.55e-06,191.22,191.21,28.6952095]
[1738872725969,5.55e-06,191.22,191.21,29.6952095]
[1738872726452,5.55e-06,191.22,191.21,45.00056347]
[1738872726650,14.78140097,191.31,191.24,0.37647]
[1738872726846,14.78140097,191.31,191.25,15.78140097]
[1738872727052,14.78140097,191.31,191.25,16.78140097]
[1738872727460,6.439e-05,191.26,191.25,31.47943109]
[1738872727654,6.439e-05,191.26,191.25,41.55498506]
[1738872728476,6.439e-05,191.26,191.25,46.78368506]
[1738872729154,7.603,191.38,191.25,46.78368506]
[1738872729155,9.37e-05,191.27,191.26,17.53210853]
[1738872729360,0.03,191.38,191.36,1.0]
[1738872729576,0.03,191.38,191.35,1.0]
[1738872729892,0.03,191.38,191.37,1.0]
[1738872730058,0.03,191.38,191.37,2.0]
[1738872732378,0.03,191.38,191.37,55.9206095]
[1738872734487,0.03,191.38,191.37,65.97760308]
[1738872734780,0.03,191.38,191.37,51.07071211]
[1738872734962,0.03,191.38,191.37,37.40788358]
[1738872735163,0.14287407,191.38,191.37,37.40788358]
[1738872735364,0.14287407,191.38,191.37,12.05699358]
[1738872735668,0.14287407,191.38,191.37,1.0]
[1738872735863,0.14287407,191.38,191.37,2.0]
[1738872739192,0.14287407,191.38,191.37,1.0]
[1738872739389,0.14287407,191.38,191.36,1.0]
[1738872739588,0.14287407,191.38,191.34,2.0]
[1738872739589,14.78140097,191.37,191.34,2.0]
[1738872739893,14.92427504,191.38,191.34,2.0]
[1738872740076,14.92427504,191.38,191.34,1.0]
[1738872740275,14.78140097,191.37,191.34,1.0]
[1738872740686,14.78140097,191.35,191.31,1.0]
[1738872740995,14.78140097,191.33,191.29,1.0]
[1738872741372,14.78140097,191.3,191.25,1.0]
[1738872741573,14.78140097,191.29,191.25,2.0]
[1738872741777,14.78140097,191.3,191.25,2.0]
[1738872741994,14.78140097,191.31,191.27,1.0]
[1738872742174,14.78140097,191.32,191.26,1.0]
[1738872742373,14.78140097,191.32,191.27,2.0]
[1738872742701,14.78140097,191.33,191.28,1.0]
[1738872743393,14.78140097,191.32,191.28,1.0]
[1738872743600,1.5677,191.36,191.26,6.2283]
[1738872743601,14.78140097,191.31,191.27,2.0]
[1738872743802,1.5677,191.36,191.27,2.0]
[1738872743803,14.78140097,191.32,191.28,1.0]
[1738872744301,14.78140097,191.35,191.3,2.0]
[1738872745600,14.78140097,191.35,191.3,7.2273]
[1738872745780,14.78140097,191.35,191.3,6.2273]
[1738872745987,14.78140097,191.35,191.3,7.2273]
[1738872746699,0.14287407,191.38,191.33,1.0]
[1738872746899,0.14287407,191.38,191.33,2.0]
[1738872747083,0.14287407,191.38,191.35,1.0]
[1738872747293,0.14287407,191.38,191.36,2.0]
[1738872747492,0.14287407,191.38,191.37,2.0]
[1738872749202,0.14287407,191.38,191.36,1.0]
[1738872749508,0.14287407,191.38,191.37,1.0]
[1738872750491,0.14287407,191.38,191.37,2.0]
[1738872750911,0.14287407,191.38,191.37,16.78140097]
[1738872751806,0.14287407,191.38,191.37,22.00680097]
[1738872752505,0.14287407,191.38,191.37,22.38327097]
[1738872752913,0.14287407,191.38,191.37,35.9206095]
[1738872753113,0.14287407,191.38,191.37,37.5837095]
[1738872753608,7.407e-05,191.38,191.37,37.5837095]
[1738872753910,7.407e-05,191.38,191.37,41.4287901]
[1738872754108,0.10769579,191.42,191.41,2.12549]
[1738872754297,0.10769579,191.42,191.41,16.90689097]
[1738872755206,0.21263829,191.42,191.41,16.78140097]
[1738872755590,0.21263829,191.42,191.37,23.7971806]
[1738872755591,0.21263829,191.42,191.4,1.0]